bitfinex/quotes_ETHUSD_20250406
["timestamp","ask_amount","ask_price","bid_price","bid_amount"]
[1743959709588,11.80889975,1719.6,1719.5,4.07095]
[1743959710805,5.82926333,1719.6,1719.4,4.07102]
[1743959711109,9.89997333,1719.6,1719.2,10.9795]
[1743959711306,5.82926333,1719.6,1719.3,4.07126]
[1743959711487,5.82926333,1719.6,1719.5,4.07095]
[1743959712492,4.07112,1719.5,1719.0,4.07201]
[1743959712693,0.0348101,1719.4,1719.0,4.07197]
[1743959712900,0.0348101,1719.4,1719.1,4.07179]
[1743959713481,0.0348101,1719.4,1719.1,8.14352]
[1743959713683,4.1059201,1719.5,1719.1,8.14353]
[1743959713991,7.57463642,1719.6,1719.3,4.07136]
[1743959714190,7.60944652,1719.6,1719.3,4.07136]
[1743959715330,11.68016652,1719.6,1719.3,4.07136]
[1743959715614,11.64535642,1719.6,1719.2,4.07151]
[1743959715818,0.0348101,1719.5,1719.2,4.07151]
[1743959715984,11.64535642,1719.6,1719.2,4.07151]
[1743959715985,7.57463642,1719.6,1719.3,4.07129]
[1743959716313,7.57463642,1719.6,1719.4,4.07117]
[1743959716686,5.97963642,1719.6,1719.4,4.07105]
[1743959716920,5.97963642,1719.6,1719.5,4.07095]
[1743959719088,5.97963642,1719.9,1719.6,4.07062]
[1743959719300,0.0348101,1719.8,1719.5,8.1417]
[1743959719500,0.0348101,1719.8,1719.6,4.07061]
[1743959719699,0.0348101,1719.8,1719.5,4.07078]
[1743959719998,0.0348101,1719.8,1719.4,4.07116]
[1743959720223,4.1051301,1719.8,1719.4,4.07116]
[1743959720392,11.66629642,1719.7,1719.2,4.07157]
[1743959720583,0.0348101,1719.6,1719.3,4.0714]
[1743959720916,0.0348101,1719.6,1719.2,4.07157]
[1743959720917,4.1056501,1719.6,1719.2,4.07157]
[1743959721234,4.07096,1719.5,1719.1,4.07189]
[1743959721590,4.07142,1719.3,1719.0,4.07212]
[1743959721794,4.1060801,1719.4,1719.0,4.07212]
[1743959722022,0.0348101,1719.4,1719.1,4.07179]
[1743959722230,4.07081,1719.6,1719.1,4.07179]
[1743959722231,0.0348101,1719.5,1719.1,4.07179]
[1743959722386,4.1058601,1719.5,1719.1,4.07179]
[1743959722591,0.0348101,1719.5,1719.1,4.07176]
[1743959722805,0.0348101,1719.5,1719.2,4.07153]
[1743959723034,0.0348101,1719.5,1719.3,4.0714]
[1743959723189,0.0348101,1719.6,1719.3,4.0714]
[1743959723989,4.1057101,1719.6,1719.2,4.07159]
[1743959724208,4.1057101,1719.6,1719.1,4.478836]
[1743959724430,4.07103,1719.5,1719.1,8.550636]
[1743959724637,4.1057101,1719.6,1719.2,4.07148]
[1743959724989,0.0348101,1719.6,1719.3,4.07141]
[1743959725208,4.1055201,1719.6,1719.3,4.07141]
[1743959725546,7.59573642,1719.5,1718.3,1.615]
[1743959725748,8.14463,1719.0,1718.6,4.07294]
[1743959725901,6.01444652,1718.9,1718.6,0.814611]
[1743959726099,6.01444652,1718.9,1718.3,4.07377]
[1743959726347,8.14605,1718.7,1718.3,4.07378]
[1743959726644,1.6161,1718.8,1718.6,4.07307]
[1743959726848,1.6161,1718.8,1718.3,4.0737]
[1743959726849,5.68885,1718.8,1718.3,4.0737]
[1743959727145,4.07321,1718.6,1718.2,4.07397]
[1743959727314,10.05222642,1718.9,1718.5,4.07329]
[1743959727514,14.12482642,1718.9,1718.4,4.07343]
[1743959727731,4.07261,1718.8,1718.4,4.89397027]
[1743959727938,5.68921,1718.6,1718.0,4.07436]
[1743959728262,1.6161,1718.6,1717.9,1.615]
[1743959728404,4.99074986,1718.0,1716.9,1.615]
[1743959728604,4.07569,1717.5,1716.9,4.07698]
[1743959728806,4.07569,1717.5,1717.4,4.07592]
[1743959728807,5.97963642,1717.5,1717.4,4.07592]
[1743959729156,4.07461,1718.0,1717.5,4.07558]
[1743959729316,4.07461,1718.0,1717.2,1.615]
[1743959729317,4.07545,1717.7,1717.2,1.615]
[1743959729503,4.07592,1717.5,1717.0,4.484418]
[1743959729704,4.07617,1717.3,1716.9,4.07711]
[1743959729908,4.1112201,1717.2,1716.8,5.88285136]
[1743959730118,5.97963642,1717.3,1716.9,4.077]
[1743959730347,10.09079652,1717.3,1716.6,8.5314]
[1743959730650,5.97963642,1717.3,1717.0,4.07669]
[1743959730942,5.97963642,1717.3,1717.1,4.07657]
[1743959731143,5.97963642,1717.3,1717.1,4.07648]
[1743959731554,5.97963642,1717.3,1717.2,4.0764]
[1743959731742,1.6161,1717.6,1717.3,4.07614]
[1743959732056,5.97963642,1717.7,1717.5,4.07553]
[1743959732350,5.97963642,1717.7,1717.6,4.07545]
[1743959732533,5.97963642,1718.1,1718.0,4.0745]
[1743959732757,6.01444652,1718.4,1718.1,4.07426]
[1743959732938,5.97963642,1718.4,1718.1,4.07426]
[1743959733252,5.97963642,1718.4,1718.1,4.07416]
[1743959733637,5.97963642,1718.4,1718.2,4.0739]
[1743959734213,0.0348101,1718.3,1717.9,8.14912]
[1743959734413,0.0348101,1718.3,1718.0,4.07446]
[1743959734853,0.0348101,1718.3,1718.1,4.07421]
[1743959735006,5.97963642,1718.4,1718.2,4.07403]
[1743959735211,5.97963642,1718.4,1718.0,4.07449]
[1743959735506,0.0348101,1718.3,1717.9,4.07471]
[1743959735751,4.1086101,1718.3,1717.9,4.07471]
[1743959735906,0.0348101,1718.3,1717.9,8.14926]
[1743959736111,0.0348101,1718.3,1717.9,8.964186]
[1743959736354,0.0348101,1718.3,1717.6,1.52]
[1743959736570,5.97963642,1718.2,1717.9,4.07463]
[1743959736769,5.97963642,1718.2,1717.7,6.92920772]
[1743959737074,5.97963642,1718.2,1718.1,4.07426]
[1743959737432,7.56533642,1718.6,1718.4,4.07355]
[1743959737633,5.77463313,1718.6,1718.5,4.07331]
[1743959737861,5.77463313,1718.6,1718.5,10.94831]
[1743959738989,1.5386,1719.6,1719.5,4.07095]
[1743959739135,5.97963642,1719.7,1719.5,4.07095]
[1743959739482,5.97963642,1719.7,1719.4,4.0711]
[1743959739483,0.24077287,1719.6,1719.4,4.07099]
[1743959739663,0.24077287,1719.6,1719.5,4.07095]
[1743959739985,5.97963642,1719.7,1719.6,4.07071]
[1743959740632,5.97963642,1720.0,1719.8,4.07016]
[1743959740831,5.97963642,1720.0,1719.9,4.07]
[1743959741077,5.97963642,1720.0,1719.8,4.07016]
[1743959741289,5.97963642,1720.0,1719.9,4.07]
[1743959741571,6.01444652,1720.4,1719.9,4.07]
[1743959741790,6.01444652,1720.4,1719.9,4.06977]
[1743959741949,6.01444652,1720.4,1720.0,4.06972]
[1743959742150,0.20529703,1720.3,1720.2,4.06919]
[1743959742684,0.20529703,1720.3,1720.2,10.98630778]
[1743959742895,5.97963642,1720.8,1720.2,6.91711778]
[1743959743193,4.06869,1720.5,1720.0,45.93963]
[1743959743397,4.1035001,1720.5,1720.0,45.93963]
[1743959743553,0.20587342,1720.4,1720.1,4.06947]
[1743959743888,0.20587342,1720.4,1720.1,4.06934]
[1743959744251,0.20587342,1720.4,1720.1,8.1387]
[1743959744451,0.20587342,1720.4,1720.0,50.0094]
[1743959744669,0.20587342,1720.4,1720.0,45.93964]
[1743959744947,6.18550984,1720.4,1720.0,41.87]
[1743959745153,0.0348101,1720.3,1720.0,41.87]
[1743959745401,6.18550984,1720.4,1720.0,45.93956]
[1743959745598,0.20612149,1720.2,1720.0,41.87]
[1743959745805,10.04853642,1720.4,1720.0,41.87]
[1743959746007,0.20580953,1720.1,1720.0,41.87]
[1743959746164,1.5386,1720.2,1719.6,4.0707]
[1743959746369,4.1044401,1720.1,1719.5,10.92794]
[1743959746582,4.06993,1720.0,1719.5,10.92794]
[1743959746778,8.38030398,1720.1,1719.5,10.92794]
[1743959746990,0.20676299,1719.9,1719.6,4.07053]
[1743959747300,1.5386,1720.2,1719.8,4.07019]
[1743959747486,5.97963642,1720.4,1720.0,4.06975]
[1743959747886,4.06944,1720.2,1719.7,8.14065]
[1743959748071,4.1040801,1720.3,1719.9,4.06997]
[1743959748269,4.1040801,1720.3,1719.8,4.07021]
[1743959748270,5.97963642,1720.4,1720.2,4.06925]
[1743959748675,5.97963642,1720.4,1720.1,4.06948]
[1743959749009,9.44286155,1720.7,1720.3,4.06888]
[1743959749209,9.47767165,1720.7,1720.3,4.06888]
[1743959750082,13.54582165,1720.7,1720.3,4.06888]
[1743959750296,9.44286155,1720.7,1720.1,4.06947]
[1743959750490,4.0686,1720.5,1720.1,4.06947]
[1743959750673,13.51097155,1720.7,1720.3,4.06904]
[1743959750875,9.44286155,1720.7,1720.4,4.06881]
[1743959751507,4.06858,1720.5,1720.1,4.0693]
[1743959751715,0.0348101,1720.6,1719.9,10.92698]
[1743959751900,6.01444652,1720.7,1720.3,4.06895]
[1743959752072,10.08265652,1720.7,1720.3,4.06895]
[1743959752405,4.06843,1720.6,1720.2,4.06929]
[1743959752576,4.06858,1720.5,1720.1,4.06951]
[1743959752904,10.04775642,1720.7,1720.1,0.406951]
[1743959753091,5.97963642,1720.7,1720.4,8.13754]
[1743959753403,5.97963642,1720.7,1720.5,4.06849]
[1743959754706,5.97963642,1720.7,1720.5,4.06842]
[1743959755300,5.97963642,1720.7,1720.4,4.06875]
[1743959755531,5.97963642,1720.7,1720.6,4.06834]
[1743959756028,5.57708643,1720.7,1720.6,4.06834]
[1743959756419,5.75603551,1720.7,1720.6,4.06834]
[1743959756614,5.57708643,1720.7,1720.6,4.06834]
[1743959756821,5.57708643,1721.0,1720.7,4.068]
[1743959757004,5.57708643,1721.0,1720.9,4.06763]
[1743959757418,1.527,1721.3,1720.9,4.06763]
[1743959757729,1.527,1721.3,1720.9,8.13494]
[1743959757730,5.59371,1721.3,1720.9,8.13494]
[1743959757921,1.527,1721.3,1721.1,4.06714]
[1743959758119,1.527,1721.3,1721.2,4.06693]
[1743959758319,9.04031156,1721.4,1721.1,4.06714]
[1743959758521,5.57708643,1721.4,1721.2,4.06686]
[1743959758831,5.57708643,1721.4,1721.3,4.06669]
[1743959759197,1.5618101,1721.7,1721.4,4.0664]
[1743959759420,5.57708643,1721.8,1721.5,4.0661]
[1743959759732,4.06584,1721.7,1721.3,4.68250253]
[1743959760129,9.64260643,1721.8,1721.3,4.68236253]
[1743959760431,4.06579,1721.7,1721.3,4.68252253]
[1743959760827,8.13177,1721.7,1721.3,4.68252253]
[1743959761134,4.1009801,1721.6,1721.1,10.92014]
[1743959761298,1.527,1721.4,1721.0,41.839]
[1743959761502,5.6283601,1721.4,1721.0,45.90636]
[1743959761743,4.0668,1721.3,1721.0,41.839]
[1743959761904,4.06693,1721.2,1721.0,41.839]
[1743959762106,4.06752,1721.0,1720.6,4.06831]
[1743959762444,4.1023301,1721.0,1720.5,5.71881]
[1743959762615,5.59476,1720.9,1720.5,8.90159995]
[1743959762801,5.59476,1720.9,1720.4,50.75057953]
[1743959762802,4.068,1720.8,1720.4,50.75057953]
[1743959763002,1.527,1720.9,1720.5,4.06857]
[1743959763449,5.59466,1720.9,1720.4,46.68184953]
[1743959763652,4.1026801,1720.8,1720.4,46.68184953]
[1743959763939,10.19408643,1721.2,1720.4,46.68184953]
[1743959763940,5.57708643,1721.2,1720.7,5.71844]
[1743959764128,5.57708643,1721.2,1721.0,4.06731]
[1743959764307,5.57708643,1721.2,1721.0,4.06726]
[1743959764503,5.57708643,1721.2,1721.1,4.06716]
[1743959764937,1.527,1721.4,1721.2,8.13362]
[1743959765235,1.527,1721.4,1720.9,4.06753]
[1743959765236,4.27039878,1721.3,1720.9,4.06753]
[1743959765437,0.20355878,1721.3,1721.0,4.06735]
[1743959765611,0.16874868,1721.3,1721.2,4.06693]
[1743959765806,0.16874868,1721.3,1721.0,4.06735]
[1743959766021,4.06671,1721.3,1720.9,4.06761]
[1743959766340,0.0348101,1721.5,1720.9,4.06761]
[1743959766341,0.16894487,1721.2,1721.0,4.06726]
[1743959766508,5.57708643,1721.6,1721.3,4.0665]
[1743959766708,5.57708643,1721.6,1721.0,1.6504]
[1743959766709,0.16987905,1721.5,1721.0,1.6504]
[1743959766908,0.16987905,1721.5,1721.1,4.06696]
[1743959767146,0.16987905,1721.5,1721.0,1.6504]
[1743959767305,0.16987905,1721.5,1721.1,4.06716]
[1743959767643,0.16987905,1721.5,1721.2,4.0669]
[1743959767954,4.23609905,1721.5,1721.1,4.638916]
[1743959768468,4.23612905,1721.5,1721.2,0.5396181]
[1743959768668,0.16987905,1721.5,1721.2,4.6065281]
[1743959769446,0.16987905,1721.5,1721.2,8.6733681]
[1743959769647,0.16987905,1721.5,1721.4,4.06645]
[1743959770727,0.16987905,1721.5,1721.3,4.6061981]
[1743959771146,0.16987905,1721.5,1721.4,0.5396181]
[1743959772159,0.16987905,1721.5,1721.4,4.6060681]
[1743959772521,5.61189653,1722.1,1721.9,4.06507]
[1743959772849,0.13293686,1722.0,1721.9,4.06507]
[1743959773435,5.57708643,1722.1,1721.8,4.0655]
[1743959773755,0.13415588,1722.0,1721.9,4.6048881]
[1743959774966,0.13415588,1722.0,1721.9,5.52997958]
[1743959775153,0.13415588,1722.0,1721.9,7.11461191]
[1743959775353,7.12718643,1722.5,1722.3,4.06432]
[1743959775521,0.13603155,1722.4,1722.2,4.06446]
[1743959775918,0.13603155,1722.4,1722.1,4.06478]
[1743959776226,0.13603155,1722.4,1722.3,0.5396181]
[1743959777227,4.20012155,1722.4,1722.3,0.5396181]
[1743959777572,0.13603155,1722.4,1722.3,0.5396181]
[1743959778067,4.20012155,1722.4,1722.3,0.5396181]
[1743959778225,4.78493165,1722.4,1722.3,0.5396181]
[1743959778426,0.13603155,1722.4,1722.2,4.06433]
[1743959778733,0.13603155,1722.4,1722.3,4.06433]
[1743959778934,5.6508701,1722.8,1722.3,8.12866]
[1743959779141,0.13715206,1722.7,1722.3,8.12866]
[1743959779655,0.13715206,1722.7,1722.4,4.06408]
[1743959780037,0.5848101,1722.6,1722.2,0.406433]
[1743959780231,0.5848101,1722.6,1721.9,6.845]
[1743959780232,0.0348101,1722.6,1721.9,6.845]
[1743959780540,0.13654724,1722.5,1722.2,4.06446]
[1743959780736,0.13654724,1722.5,1722.3,4.06428]
[1743959781060,0.13654724,1722.5,1722.3,4.06038315]
[1743959781264,0.13654724,1722.5,1722.2,4.06446]
[1743959781477,0.13654724,1722.5,1722.3,0.53828196]
[1743959781840,0.13654724,1722.5,1722.3,4.60254196]
[1743959782064,0.10749724,1722.5,1722.4,4.5243442]
[1743959782260,0.10749724,1722.5,1722.4,4.06409]
[1743959782625,0.55,1722.7,1722.4,4.06409]
[1743959782875,0.1341264,1722.5,1722.3,0.53343045]
[1743959783041,0.55,1722.7,1722.3,0.53343045]
[1743959783233,0.13381541,1722.4,1722.3,5.63043]
[1743959783559,0.13381541,1722.4,1722.3,6.6057315]
[1743959783735,4.61339,1722.7,1722.3,5.63043]
[1743959783929,0.13605787,1722.6,1722.5,4.06384]
[1743959784128,1.5877101,1722.8,1722.5,4.06384]
[1743959784359,0.13636879,1722.7,1722.3,5.6304]
[1743959784663,0.13636879,1722.7,1722.5,4.06376]
[1743959784961,5.57708643,1722.9,1722.6,4.06362]
[1743959785134,9.64013643,1722.9,1722.5,4.06376]
[1743959785334,0.13667967,1722.8,1722.6,4.06346]
[1743959785642,9.64009643,1722.9,1722.5,4.876593]
[1743959785825,0.13665865,1722.7,1722.5,4.876593]
[1743959786033,4.06229,1723.2,1722.7,4.06327]
[1743959786369,8.1584801,1723.4,1722.9,4.06282]
[1743959786535,4.0965701,1723.4,1723.0,4.05874211]
[1743959786957,4.0965701,1723.4,1723.0,8.12133211]
[1743959787266,4.0965701,1723.4,1722.7,4.06333]
[1743959787267,4.06262,1723.1,1722.7,4.06338]
[1743959787443,4.61222,1723.2,1722.8,4.06314]
[1743959787644,4.0970301,1723.2,1722.6,1.5661]
[1743959787960,4.0966801,1723.4,1723.0,4.06264]
[1743959788462,0.0348101,1723.4,1723.1,4.06239]
[1743959788663,5.57708643,1723.6,1723.2,4.0622]
[1743959788873,4.06165,1723.5,1723.0,10.90466]
[1743959789062,4.0966401,1723.4,1723.0,10.90466]
[1743959789639,4.0966401,1723.4,1723.0,14.96719]
[1743959789841,0.13918818,1723.3,1723.1,4.06243]
[1743959790139,4.06239,1723.2,1722.8,45.85313]
[1743959790337,4.06239,1723.2,1722.9,4.06283]
[1743959790338,0.68856673,1723.1,1722.9,4.06283]
[1743959790586,0.68856673,1723.1,1722.8,45.85304]
[1743959790763,6.26565316,1723.1,1722.5,4.06372]
[1743959790933,8.1605401,1723.0,1722.5,8.533832]
[1743959791139,0.13797922,1722.9,1722.6,4.06343]
[1743959791886,0.1261701,1722.8,1722.5,4.470212]
[1743959792380,0.12585922,1722.7,1722.6,4.06358]
[1743959792562,0.12585922,1722.7,1722.5,4.06384]
[1743959792741,4.61276,1723.0,1722.6,4.06362]
[1743959792939,0.12648095,1722.9,1722.6,4.06345]
[1743959793138,4.18942095,1722.9,1722.6,0.406345]
[1743959793339,4.61316,1722.8,1722.4,4.06404]
[1743959793534,0.12585922,1722.7,1722.4,4.06404]
[1743959793767,0.12585922,1722.7,1722.4,4.06392]
[1743959793973,0.12585922,1722.7,1722.5,4.06385]
[1743959794140,0.12585922,1722.7,1722.6,4.06362]
[1743959794351,0.12585922,1722.7,1722.6,4.88217184]
[1743959794568,0.55,1723.0,1722.6,4.88217184]
[1743959794879,0.12648095,1722.9,1722.6,4.12150271]
[1743959795079,0.12648095,1722.9,1722.7,4.06329]
[1743959795262,0.12648095,1722.9,1722.7,4.06324]
[1743959795454,0.12648095,1722.9,1722.8,0.53813488]
[1743959795655,5.72878,1723.0,1722.8,0.53813488]
[1743959795840,0.12661745,1722.9,1722.8,0.53813488]
[1743959796046,0.12661745,1722.9,1722.8,4.60128488]
[1743959796457,0.12661745,1722.9,1722.8,0.53813488]
[1743959796661,5.57708643,1723.1,1722.8,5.06142037]
[1743959796867,0.1267879,1722.9,1722.8,5.06142037]
[1743959797084,9.63955643,1723.1,1722.8,0.99827037]
[1743959797290,0.6767879,1722.9,1722.8,0.53813488]
[1743959797464,4.61291,1722.9,1722.8,0.53813488]
[1743959797645,4.73955094,1722.9,1722.8,0.53813488]
[1743959797851,0.12664094,1722.9,1722.8,0.53813488]
[1743959798390,0.1267879,1722.9,1722.8,0.53813488]
[1743959798746,4.1896979,1722.9,1722.8,0.53813488]
[1743959798950,4.7396979,1722.9,1722.8,0.53813488]
[1743959799152,6.3759979,1722.9,1722.8,0.53813488]
[1743959799878,1.7630879,1722.9,1722.8,0.53813488]
[1743959800086,0.1267879,1722.9,1722.8,0.53813488]
[1743959800286,0.1267879,1722.9,1722.8,5.06142437]
[1743959800455,7.21338643,1723.1,1722.8,5.06142437]
[1743959800651,0.11648433,1722.9,1722.8,0.53813488]
[1743959800867,7.21338643,1723.1,1722.8,4.60105488]
[1743959801066,0.11656577,1722.9,1722.8,4.60128488]
[1743959801374,5.57708643,1723.1,1722.9,4.06281]
[1743959801588,5.57708643,1723.1,1722.8,4.60128488]
[1743959801760,4.06277,1723.0,1722.8,0.53813488]
[1743959801961,4.06291,1722.9,1722.8,0.53813488]
[1743959802495,4.61291,1722.9,1722.8,0.53813488]
[1743959802695,6.24921,1722.9,1722.8,0.53813488]
[1743959802861,2.1863,1722.9,1722.8,0.53813488]
[1743959803693,0.55,1722.9,1722.8,0.53813488]
[1743959805011,5.57708643,1723.1,1723.0,4.06268]
[1743959805166,5.57708643,1723.1,1722.8,0.53813488]
[1743959805167,7.06201,1723.3,1722.9,4.06282]
[1743959805557,1.6363,1723.4,1723.1,4.0624]
[1743959805802,0.16257135,1723.3,1723.1,4.0624]
[1743959806416,0.16257135,1723.3,1723.2,4.0622]
[1743959806608,0.16257135,1723.3,1723.2,4.60033488]
[1743959806968,5.57708643,1723.5,1723.2,8.66253488]
[1743959807175,0.16303735,1723.4,1723.2,8.66253488]
[1743959807374,0.16303735,1723.4,1723.3,4.92822349]
[1743959807619,0.16303735,1723.4,1723.3,4.06197]
[1743959807775,0.16303735,1723.4,1723.3,4.60010488]
[1743959807976,0.16303735,1723.4,1723.3,0.53813488]
[1743959808807,4.77476735,1723.4,1723.3,0.53813488]
[1743959809203,6.41106735,1723.4,1723.3,0.53813488]
[1743959809705,14.98815378,1723.4,1723.3,0.53813488]
[1743959810702,0.55,1723.2,1722.9,4.60100488]
[1743959811008,4.61222,1723.2,1723.0,1.0]
[1743959811383,4.61244,1723.1,1723.0,1.0]
[1743959811912,4.61244,1723.1,1723.0,1.53813488]
[1743959812114,0.55,1723.1,1723.0,1.53813488]
[1743959812717,4.61244,1723.1,1723.0,1.53813488]
[1743959813421,4.61244,1723.1,1723.0,1.0]
[1743959813792,6.12708643,1723.1,1723.0,1.0]
[1743959814194,11.27514643,1723.4,1723.0,5.06268]
[1743959814395,11.27514643,1723.4,1723.0,5.975238]
[1743959814628,0.16257135,1723.3,1723.1,0.54222952]
[1743959815123,0.16257135,1723.3,1723.1,4.60452952]
[1743959815495,0.16257135,1723.3,1723.2,0.54222952]
[1743959816699,0.16257135,1723.3,1723.2,4.60442952]
[1743959817404,0.16257135,1723.3,1723.2,0.54222952]
[1743959817929,0.16257135,1723.3,1723.2,4.60442952]
[1743959818347,0.16257135,1723.3,1723.2,5.47110447]
[1743959819604,0.16257135,1723.3,1723.2,1.40890447]
[1743959819815,0.16257135,1723.3,1723.2,0.54222952]
[1743959819998,6.30734135,1723.3,1723.2,0.54222952]
[1743959820826,4.06244,1723.1,1723.0,1.0]
[1743959821035,4.61244,1723.1,1723.0,1.0]
[1743959821336,16.13898568,1723.1,1723.0,1.0]
[1743959822640,26.41429947,1723.1,1723.0,1.0]
[1743959822928,4.06407,1722.5,1722.3,0.54205365]
[1743959823130,9.64115643,1722.5,1722.3,0.54205365]
[1743959823307,5.57708643,1722.5,1722.3,0.54205365]
[1743959823506,5.57708643,1722.5,1722.3,5.06700502]
[1743959823720,5.57708643,1722.5,1722.4,0.54205365]
[1743959824046,5.57708643,1722.5,1722.4,4.60614365]
[1743959825118,16.47031643,1723.2,1722.8,4.063]
[1743959825519,0.16274568,1723.1,1722.7,5.57649]
[1743959825720,0.16274568,1723.1,1722.7,1.5132]
[1743959826036,0.16227951,1723.0,1722.7,9.6398]
[1743959826396,0.16227951,1723.0,1722.7,5.57644]
[1743959826849,4.61254,1723.1,1722.7,5.57644]
[1743959827142,4.61254,1723.1,1722.7,9.63965]
[1743959827341,5.57708643,1723.2,1722.7,2.477165]
[1743959827542,5.57708643,1723.2,1723.0,4.06247]
[1743959827708,5.57708643,1723.2,1722.8,4.06292]
[1743959827709,0.55,1723.1,1722.8,4.06292]
[1743959828448,4.61246,1723.1,1722.7,5.57657]
[1743959828649,4.61246,1723.1,1722.7,9.63986]
[1743959828935,0.55,1722.9,1722.6,4.06357]
[1743959829139,0.55,1722.9,1722.7,4.06334]
[1743959829311,0.55,1722.9,1722.8,0.54166023]
[1743959829922,4.61291,1722.9,1722.8,0.54166023]
[1743959830588,0.55,1722.7,1722.5,0.54166023]
[1743959830739,4.61362,1722.6,1722.5,0.54166023]
[1743959830945,6.12502,1722.6,1722.5,0.54166023]
[1743959831604,6.12502,1722.6,1722.3,0.54166023]
[1743959831809,6.12502,1722.6,1722.3,4.60599023]
[1743959831810,2.0614,1722.6,1722.3,4.60599023]
[1743959832210,5.57708643,1722.7,1722.4,4.06395]
[1743959832542,5.57708643,1722.7,1722.5,4.06376]
[1743959832842,0.55,1722.6,1722.4,4.06407]
[1743959833007,0.55,1722.6,1722.5,4.06386]
[1743959833444,5.57708643,1722.7,1722.5,4.876646]
[1743959833645,6.12708643,1722.7,1722.6,4.06362]
[1743959833948,8.3964,1723.0,1722.7,4.06323]
[1743959834252,7.06246,1723.1,1722.7,4.06323]
[1743959834737,5.62961,1723.2,1722.8,4.06315]
[1743959834922,9.63906643,1723.3,1722.8,5.71074]
[1743959835107,9.63906643,1723.3,1723.1,4.06228]
[1743959835108,5.57708643,1723.3,1723.1,4.06228]
[1743959835313,5.73947765,1723.3,1723.1,4.06228]
[1743959835565,5.73947765,1723.3,1723.1,8.12461]
[1743959835730,5.73947765,1723.3,1723.2,4.0622]
[1743959836233,0.16239122,1723.3,1723.2,6.25111184]
[1743959836542,5.57708643,1723.6,1723.4,4.06172]
[1743959836746,5.57708643,1723.6,1723.2,3.22025102]
[1743959836747,5.57708643,1723.6,1723.3,4.06196]
[1743959836948,5.57708643,1723.6,1723.4,4.0617]
[1743959837717,5.57708643,1723.6,1723.3,4.06196]
[1743959837923,5.57708643,1723.6,1723.4,4.06156]
[1743959838147,5.57708643,1723.6,1723.4,8.12312]
[1743959838330,6.12708643,1723.6,1723.5,4.0615]
[1743959838538,5.57708643,1723.6,1723.5,4.0615]
[1743959838938,5.57224728,1723.6,1723.5,4.0615]
[1743959839234,5.57224728,1723.6,1723.4,8.12316]
[1743959839554,5.57224728,1723.6,1723.3,4.73608392]
[1743959839727,0.55,1723.5,1723.2,1.6477]
[1743959839929,0.55,1723.5,1723.2,5.70979]
[1743959840941,4.6116,1723.5,1723.2,1.6477]
[1743959841147,0.54607997,1723.5,1723.2,4.06211]
[1743959841346,5.57224728,1723.6,1723.3,4.06183]
[1743959841550,5.57224728,1723.6,1723.4,8.12325]
[1743959841944,5.57224728,1723.6,1723.5,4.0615]
[1743959842255,4.06066,1723.9,1723.4,1.6552]
[1743959842459,4.06066,1723.9,1723.5,4.0614]
[1743959842635,4.06066,1723.9,1723.5,4.60157109]
[1743959843039,0.55,1723.7,1723.5,0.54017109]
[1743959843355,0.55,1723.8,1723.5,4.60165109]
[1743959843555,4.06033,1724.0,1723.5,5.09323411]
[1743959843761,4.61065,1723.9,1723.5,9.15458411]
[1743959844174,4.61065,1723.9,1723.4,1.6552]
[1743959844175,4.61065,1723.9,1723.4,5.71693]
[1743959844374,4.06088,1723.8,1723.4,4.06173]
[1743959844674,4.61116,1723.7,1723.3,8.12379]
[1743959844828,4.61116,1723.7,1723.3,4.06183]
[1743959844829,8.67237,1723.7,1723.3,4.06183]
[1743959845032,0.55,1723.7,1723.4,4.06158]
[1743959845370,0.55,1723.8,1723.4,8.18122259]
[1743959845597,4.61079,1723.8,1723.4,4.11960259]
[1743959845727,0.55,1723.8,1723.4,4.11960259]
[1743959845928,0.55,1723.8,1723.5,4.06134]
[1743959846166,4.61088,1723.8,1723.4,8.12329]
[1743959846351,8.67184,1723.8,1723.4,4.06157]
[1743959846551,4.06116,1723.7,1723.3,4.06197]
[1743959846753,4.61081,1723.8,1723.4,4.11960831]
[1743959847049,4.22699017,1723.7,1723.3,4.06183]
[1743959847268,0.16585017,1723.7,1723.4,1.6552]
[1743959847467,9.63271728,1724.0,1723.6,4.06126]
[1743959847669,5.57224728,1724.0,1723.6,4.06117]
[1743959847971,9.63274728,1724.0,1723.5,4.06133]
[1743959848170,4.06083,1723.8,1723.4,5.71688]
[1743959848368,0.55,1723.9,1723.5,4.06133]
[1743959848524,4.06082,1723.8,1723.4,5.71683]
[1743959848729,4.61076,1723.9,1723.4,5.7168]
[1743959848969,4.06075,1723.9,1723.4,5.71693]
[1743959849164,5.57224728,1724.0,1723.6,4.06126]
[1743959849396,0.55,1723.9,1723.6,4.06126]
[1743959849601,0.55,1723.9,1723.4,5.71691]
[1743959849800,4.06092,1723.8,1723.4,5.71691]
[1743959850357,0.55,1723.7,1723.0,4.06264]
[1743959850621,0.55,1723.3,1722.9,9.78084]
[1743959850802,0.55,1723.3,1722.9,10.4097574]
[1743959850985,4.06243,1723.2,1722.7,5.71855]
[1743959851171,0.55,1723.0,1722.7,1.6552]
[1743959851372,0.55,1723.6,1723.2,4.0622]
[1743959851591,2.0724,1723.6,1723.1,5.57264]
[1743959851775,6.13386,1723.6,1723.1,5.57264]
[1743959852107,10.19532,1723.6,1723.1,5.57264]
[1743959852308,4.06162,1723.5,1723.1,5.57264]
[1743959852603,0.55,1723.4,1723.1,1.5103]
[1743959852813,0.55,1723.5,1723.1,7.27632445]
[1743959852997,0.55,1723.5,1723.1,5.63066945]
[1743959853308,0.55,1723.5,1723.4,4.06173]
[1743959853519,0.55,1723.5,1723.3,4.0618]
[1743959853696,0.55,1723.6,1723.2,4.06219]
[1743959853895,4.61136,1723.6,1723.2,4.06219]
[1743959854075,4.06157,1723.5,1723.1,5.57274]
[1743959854280,4.06157,1723.5,1723.0,4.06257]
[1743959854281,4.61183,1723.4,1723.0,4.06257]
[1743959854692,4.062,1723.3,1722.9,4.06278]
[1743959854871,4.61183,1723.4,1722.9,8.12558]
[1743959855314,4.61183,1723.4,1723.0,4.06266]
[1743959855713,4.61154,1723.5,1723.1,4.06229]